Cogmind - Beta 16 @@@ ROGUE MODE // 2025.11.29 @ 20:06:03 Player: lvl5hm Result: Destroyed self via exploding Quantum Generator Performance ------------- Evolutions (8) 4000 Regions Visited (19) 3800 Robots Destroyed (275) 1375 Value Destroyed (16007) 16007 Prototype IDs (61) 1220 Alien Tech Used (11) 2200 Bonus (7061) 7061 TOTAL SCORE: 35663 Bonus ------- High Alert Combat Kills 1794 Follower Combat Kills 2585 Network Hubs Disabled 200 Registered with UFD 300 Met Zhirov 300 Built Enhanced Grunts 300 Met R17 at Cetus 500 Met R17 at Research 2000 Friendly Fire -918 Cogmind --------- Core Integrity 0/1450 Matter 79/300 Energy 700/700 System Corruption 7% +Membrane Temperature Cool (-200) +ITN Movement Rolling (170) Ox10 Location -2/Section 7 Parts ------- > --- POWER (2) -------- Vortex Chain Reactor > --- PROPULSION (2) --- Overtuned Huge Scrapsphere > --- UTILITY (13) ----- Scrap Suit Advanced Cryofiber Web Advanced Heat Sink Advanced Heat Sink Huge Storage Unit Advanced Sensor Array Experimental Signal Interpreter Experimental Targeting Computer Advanced Recoil Stabilizer Phase Armor (fused) > --- WEAPON (6) ------- Improved Potential Cannon Railgun Advanced KE Penetrator (fused) Overtuned Railgun > --- INVENTORY (25) --- Reinforced Quantum Reactor Vortex Chain Reactor Overtuned Huge Scrapsphere Experimental Heat Sink Advanced Coolant Injector Advanced Matter Compressor (400) Nanoactuators Centrium Heavy Armor Plating Advanced Force Field Experimental Force Field High-powered Tractor Beam Dimensional Node Initializer Subatomic Replicator Spacefold Activator Compact HERF Cannon Fusion Bomb Launcher Advanced Remote Datajack Multitool Core Stripper Peak State ------------ > --- POWER ------------ Vortex Chain Reactor > --- PROPULSION ------- Overtuned Huge Scrapsphere > --- UTILITY ---------- Scrap Suit Advanced Cryofiber Web Advanced Heat Sink Huge Storage Unit Experimental Signal Interpreter Experimental Targeting Computer Advanced Recoil Stabilizer Phase Armor Experimental EM Shield Experimental Force Field Spacefold Activator > --- WEAPON ----------- Railgun Advanced KE Penetrator Overtuned Railgun Hypervelocity Multirail Sigix Broadsword > --- INVENTORY -------- Reinforced Quantum Reactor Vortex Chain Reactor Overtuned Huge Scrapsphere Advanced Heat Sink Experimental Heat Sink Advanced Coolant Injector Advanced Matter Compressor Advanced Sensor Array Centrium Heavy Armor Plating Advanced Force Field High-powered Tractor Beam Dimensional Node Initializer Transdimensional Reconstructor Subatomic Replicator Compact HERF Cannon Improved Potential Cannon Fusion Bomb Launcher Advanced Remote Datajack Multitool Core Stripper [Rating: 221] Favorites ----------- Power Heavy Antimatter Reactor Engine Subdweller Power Source Power Core Neutrino Core Reactor Heavy Antimatter Reactor Propulsion Overtuned Huge Scrapsphere Treads Light Treads Wheel Overtuned Huge Scrapsphere Utility Advanced Heat Sink Device Advanced Heat Sink Storage Huge Storage Unit Processor Experimental Signal Interpreter Hackware Ghost Barrier Protection Centrium Medium Armor Plating Artifact Phase Armor Weapon Overtuned Coil Gun Energy Gun Medium Laser Energy Cannon Matter Neutralizer Ballistic Gun Overtuned Coil Gun Launcher Fusion Bomb Launcher Special Weapon Multitool Impact Weapon Core Stripper Slashing Weapon Sigix Broadsword Build | -11 -10 -10 -7 -7 -5 -5 -5 -5 -4 -4 -4 -4 -4 -4 -3 -3 -2 -2 -2 ------- Run | Yrd Mat Sub Rec Scr Fac Upp Upp Zhi Pro Fac Ext Cet Arc Hub Res Tes Res Qua Sec Slots Evolved 16 | . . . . . 10 . . . . 2 . . . . 2 . 2 . . Power 1 | . . . . . . . . . . . . . . . 1 . . . . Propulsion . | . . . . . . . . . . . . . . . . . . . . Utility 11 | . . . . . 8 . . . . 2 . . . . . . 1 . . Weapon 4 | . . . . . 2 . . . . . . . . . 1 . 1 . . Parts Attached 153 | 8 4 19 1 14 29 1 2 3 1 4 6 6 2 3 7 13 8 18 4 Power 12 | 1 1 2 . 1 1 . . 1 . . . . . . 1 2 . 2 . Engine 4 | 1 1 2 . . . . . . . . . . . . . . . . . Core 1 | . . . . 1 . . . . . . . . . . . . . . . Reactor 7 | . . . . . 1 . . 1 . . . . . . 1 2 . 2 . Propulsion 12 | 2 . 5 1 4 . . . . . . . . . . . . . . . Treads 8 | 2 . 3 1 2 . . . . . . . . . . . . . . . Leg . | . . . . . . . . . . . . . . . . . . . . Wheel 4 | . . 2 . 2 . . . . . . . . . . . . . . . Hover . | . . . . . . . . . . . . . . . . . . . . Flight . | . . . . . . . . . . . . . . . . . . . . Utility 74 | 2 2 1 . 2 19 1 2 2 1 2 5 5 2 3 3 5 7 9 1 Device 44 | 1 . 1 . 1 13 . 2 . . 2 1 1 2 1 2 3 6 8 . Storage 7 | 1 2 . . 1 1 . . 1 . . 1 . . . . . . . . Processor 7 | . . . . . 3 . . . . . 2 . . 1 . 1 . . . Hackware 2 | . . . . . . . . . . . . . . 1 . 1 . . . Protection 12 | . . . . . 2 1 . 1 1 . 1 4 . . 1 . 1 . . Artifact 2 | . . . . . . . . . . . . . . . . . . 1 1 Weapon 55 | 3 1 11 . 7 9 . . . . 2 1 1 . . 3 6 1 7 3 Energy Gun 5 | 3 . 1 . . . . . . . . . . . . . . . 1 . Energy Cannon 6 | . . 1 . . 2 . . . . . . . . . 1 1 1 . . Ballistic Gun 26 | . . 8 . 3 3 . . . . 1 . 1 . . 1 4 . 3 2 Ballistic Cannon . | . . . . . . . . . . . . . . . . . . . . Launcher 4 | . 1 1 . . 1 . . . . . . . . . . . . . 1 Special Weapon 11 | . . . . 3 3 . . . . 1 1 . . . 1 1 . 1 . Impact Weapon 1 | . . . . . . . . . . . . . . . . . . 1 . Slashing Weapon 2 | . . . . 1 . . . . . . . . . . . . . 1 . Piercing Weapon . | . . . . . . . . . . . . . . . . . . . . Special Melee Weapon . | . . . . . . . . . . . . . . . . . . . . Unidentified Prototypes 27 | . . . . . 2 1 . 4 1 . . 2 . 1 1 1 . 8 6 Parts Lost 14 | . . 4 . . . . . . . . 1 . . . . 1 5 . 3 Power . | . . . . . . . . . . . . . . . . . . . . Propulsion 3 | . . 3 . . . . . . . . . . . . . . . . . Utility 5 | . . . . . . . . . . . 1 . . . . 1 2 . 1 Weapon 6 | . . 1 . . . . . . . . . . . . . . 3 . 2 Highest Loss Streak 2 | . . 2 . . . . . . . . 1 . . . . 1 2 . 2 To Critical Strikes 1 | . . 1 . . . . . . . . . . . . . . . . . Average Backups 16 | . 3 12 13 11 17 20 20 19 21 21 22 23 23 23 22 21 20 21 19 Power . | . . 1 1 . 1 1 1 1 1 1 1 1 1 1 1 . 1 1 2 Propulsion . | . 1 . 1 1 1 1 1 1 1 1 1 1 1 1 1 1 1 1 1 Utility 7 | . . 2 4 4 8 12 12 11 11 11 13 14 14 14 13 12 11 9 7 Weapon 4 | . 1 6 6 3 4 4 4 4 4 4 3 3 4 4 3 5 3 4 4 Tool/Special . | . . . . . . . . . . . . . . . . . . . . Unused Backups 35 | . . 1 1 9 6 . . 2 . 1 2 . . . . 3 . 3 7 Power 6 | . . . . 2 1 . . 1 . . . . . . . . . . 2 Propulsion 1 | . . . . . . . . . . . . . . . . . . . 1 Utility 16 | . . 1 . 3 4 . . 1 . 1 2 . . . . 1 . 1 2 Weapon 7 | . . . 1 4 1 . . . . . . . . . . 1 . . . Tool/Special 5 | . . . . . . . . . . . . . . . . 1 . 2 2 Average Slot Usage (%) 87 | . 100 95 88 87 85 82 82 72 85 83 83 87 89 89 84 89 89 81 77 Engine 4 | . 14 14 14 6 . . . . . . . . . . . . . . . Core 1 | . . . . 7 1 . . . . . . . . . . . . . . Reactor 3 | . . . . . 3 5 5 5 5 5 5 5 5 5 4 8 8 7 4 Treads 10 | . 28 23 17 25 . . . . . . . . . . . . . . . Wheel 2 | . . 1 . 1 5 5 5 5 5 5 5 5 5 5 4 4 4 4 4 Device 22 | . 14 14 14 11 33 29 29 32 32 35 32 27 31 32 27 26 26 29 28 Storage 8 | . 14 14 14 11 5 5 5 5 5 5 5 5 5 5 4 4 4 4 4 Processor 4 | . . . . . 5 5 5 5 5 5 8 10 10 10 9 13 10 8 8 Protection 2 | . . . . . 4 5 5 4 5 5 5 12 10 5 4 3 5 . . Energy Gun 1 | . 27 4 . . . . . . . . . . . . . . . . . Ballistic Gun 18 | . . 22 28 16 18 21 23 9 21 18 20 20 15 18 20 20 23 15 16 Slashing Weapon 1 | . . . . 5 . . . . . . . . . . . . . 3 3 Peak Build Rating 221 | 7 7 14 17 42 101 105 106 101 102 114 116 127 124 127 140 157 178 218 221 Average Rating 85 | 5 7 10 14 23 89 99 100 87 101 109 112 121 123 121 130 148 169 194 205 On Entrance 92 | . 7 7 14 17 42 101 99 103 101 102 113 113 124 120 127 131 155 172 207 Avg Prop Armor Cover (%) 11 | . 11 12 . 9 . . . . . . . . . . . . . . . Naked Turns . | . . . . . . . . . . . . . . . . . . . . Heaviest Build 227 | 13 30 38 33 65 132 142 138 136 149 151 151 151 149 143 153 168 197 224 227 Greatest Support 48 | 40 40 40 40 48 20 20 20 20 20 20 20 20 20 20 20 20 20 20 20 Greatest Overweight (x) 21 | . 1 1 1 21 6 7 6 6 7 7 7 7 7 7 7 8 9 11 11 Average Overweight (x) 4 | . . . . . 5 6 6 5 6 7 7 6 7 6 6 7 8 10 10 Largest Inventory Capacity 25 | 8 15 15 15 20 25 25 25 25 25 25 25 25 25 25 25 25 25 25 25 Average Capacity 20 | 7 11 15 15 15 22 25 25 25 25 25 25 25 25 25 25 25 25 25 25 Most Carried 25 | . 7 15 15 20 25 25 25 25 25 25 25 25 25 25 25 25 25 25 25 Average Carried 19 | . 4 13 14 13 22 25 25 24 24 23 24 24 25 24 24 24 24 24 24 Final Capacity 25 | 8 15 15 15 20 25 25 25 25 25 25 25 25 25 25 25 25 25 25 25 Final Carried 25 | . 7 15 15 20 25 25 25 25 25 25 25 25 25 25 24 25 20 25 23 Scrap Suit Usage (%) 8 | . . . . . 13 1 . . . 6 15 2 1 . 11 27 2 58 . Parts Cannibalized 27 | . . . . . 2 1 . . . 4 1 1 1 . 5 8 4 . . Class Distribution -------------------- 34% | Mutant 32% | Scavenger-Scrapper 10% | Scavenger-Mutant 7% | Scavenger-Skirmisher 7% | Commander-Scrapper 3% | Scavenger-Executioner Dominant Class ---------------- Mutant | -10/Materials Scavenger-Mutant | -10/Subcaves Mutant | -7/Recycling Mutant | -7/Scraptown Scavenger-Scrapper | -5/Factory Scavenger-Scrapper | -5/Upper Caves Scavenger-Scrapper | -5/Upper Caves Scavenger-Scrapper | -5/Zhirov Scavenger-Scrapper | -4/Proximity Caves Scavenger-Scrapper | -4/Factory Commander-Scrapper | -4/Extension Scavenger-Scrapper | -4/Cetus Commander-Scrapper | -4/Archives Scavenger-Scrapper | -4/Hub_04(d) Scavenger-Scrapper | -3/Research Scavenger-Scrapper | -3/Testing Scavenger-Scrapper | -2/Research Scavenger-Skirmisher | -2/Quarantine Scavenger-Skirmisher | -2/Section 7 Resources | -11 -10 -10 -7 -7 -5 -5 -5 -5 -4 -4 -4 -4 -4 -4 -3 -3 -2 -2 -2 ----------- Run | Yrd Mat Sub Rec Scr Fac Upp Upp Zhi Pro Fac Ext Cet Arc Hub Res Tes Res Qua Sec Matter Collected 16283 | 290 260 673 186 898 1421 393 276 120 87 635 1326 217 119 486 628 2178 2422 1573 2095 Remotely 3751 | . . . . . . . 94 . . 307 404 . . . . 534 1255 374 783 Salvage Created 16402 | 248 211 687 116 240 1024 254 494 188 . 288 1853 198 290 591 483 2212 1943 1980 3102 Parts 810 | 26 13 57 6 17 56 8 21 3 . 17 80 8 10 39 18 121 88 96 126 Haulers Intercepted 3 | . 2 . . . . . . . . . . . . 1 . . . . . Recyclers Shooed 4 | 1 . . . . . . . . . 2 . . . . . . 1 . . Parts Field Recycled . | . . . . . . . . . . . . . . . . . . . . Retrieved Matter . | . . . . . . . . . . . . . . . . . . . . Parts Self-Destructed 45 | . . 7 . . . 16 21 1 . . . . . . . . . . . Prevented . | . . . . . . . . . . . . . . . . . . . . Parts Restored . | . . . . . . . . . . . . . . . . . . . . Kills | -11 -10 -10 -7 -7 -5 -5 -5 -5 -4 -4 -4 -4 -4 -4 -3 -3 -2 -2 -2 ------- Run | Yrd Mat Sub Rec Scr Fac Upp Upp Zhi Pro Fac Ext Cet Arc Hub Res Tes Res Qua Sec Combat Hostiles Destroyed 209 | . 2 22 2 . 14 4 8 . . 4 19 3 2 9 3 26 22 26 43 Guns 179 | . . 13 2 . 5 4 8 . . 4 19 3 2 9 3 26 22 22 37 Cannons 2 | . . 1 . . . . . . . . . . . . . . . . 1 AOE 23 | . 2 7 . . 8 . . . . . . . . . . . . 3 3 Classes Destroyed 25 | 3 2 5 . 1 3 . 1 . . 1 3 . . 2 . . 1 1 2 Worker 7 | 1 1 . . . 1 . . . . . 1 . . 1 . . . . 2 Builder 4 | . . . . . 1 . . . . 1 1 . . . . 1 . . . Tunneler 11 | 9 1 . . . 1 . . . . . . . . . . . . . . Hauler 3 | . 2 . . . . . . . . . . . . 1 . . . . . Recycler 6 | 1 . . . . . . . . . . 2 . . . . 1 1 . 1 Mechanic 1 | . . . . . . . . . . . . . . . . . . . 1 Operator 6 | . . . . . 1 . . . . . . . 3 . . 1 1 . . Turret 2 | . . 2 . . . . . . . . . . . . . . . . . Watcher 15 | . . . . . 1 . . . . . 2 . . . . 3 5 3 1 Swarmer 28 | . . 5 . . 3 1 1 . . . . . . 5 . . 5 4 4 Grunt 60 | . 2 . . . 9 2 4 . . 1 10 . . . 3 8 3 4 14 Duelist 2 | . . . . . . . 2 . . . . . . . . . . . . Protector 1 | . . . . . . . . . . . . . . 1 . . . . . Sentry 25 | . . 1 2 . 1 1 1 . . 1 6 . 2 1 . 3 1 . 5 Specialist 3 | . . . . . . . . . . . . . . . . . 1 . 2 Hunter 14 | . . . . . . . . . . . 1 . . . . 5 2 2 4 Programmer 46 | . . . . . . . . . . 2 1 . . . . 10 7 15 11 Heavy 2 | . . . . . . . . . . . . . . 1 . . 1 . . Behemoth 3 | . . . . . . . . . . . 1 . . . . . 2 . . Cetus Guard 3 | . . . . . . . . . . . . 3 . . . . . . . S7 Guard 2 | . . . . . . . . . . . . . . . . . . . 2 Lightning 1 | . . . . . . . . . . . . . . 1 . . . . . Alpha 7 1 | . . . . . . . . . . . . . . . . . . . 1 Fortress 1 | . . . . . . . . . . . . . . . . . . 1 . Artisan 1 | . . 1 . . . . . . . . . . . . . . . . . Subdweller 16 | . . 16 . . . . . . . . . . . . . . . . . Scrapoid 10 | . . . . 3 4 . . . . . . . . . 3 . . . . Savage 1 | . . . . . . . . . . . 1 . . . . . . . . Guerrilla 1 | . . . . . . . . . . . . . . 1 . . . . . Best Kill Streak 10 | 4 3 7 2 . 6 4 5 . . 3 6 2 3 5 3 6 6 4 10 Combat Bots Only 5 | . 2 5 2 . 5 4 5 . . 3 5 2 2 5 3 4 5 4 5 Max Kills in Single Turn 3 | 1 3 3 1 1 3 1 2 . . 1 3 1 1 3 1 2 2 3 3 Gunslinging 1 | . . . . . . . . . . . 1 . . 1 . . 1 1 1 Exploded 3 | . 2 2 . . 3 . . . . . . . . . . . . 3 2 Melee . | . . . . . . . . . . . . . . . . . . . . Uniques/NPCs Destroyed 1 | . . . . . . . . . . . . 1 . . . . . . . A7 (-4/Cetus) Combat | -11 -10 -10 -7 -7 -5 -5 -5 -5 -4 -4 -4 -4 -4 -4 -3 -3 -2 -2 -2 -------- Run | Yrd Mat Sub Rec Scr Fac Upp Upp Zhi Pro Fac Ext Cet Arc Hub Res Tes Res Qua Sec Hostile Shots Fired 976 | . 19 73 45 . 31 6 10 . . 17 45 1 2 30 4 92 86 103 412 Missed 324 | . 5 23 21 . 12 1 4 . . 8 11 . . 8 1 34 24 35 137 Hits 652 | . 14 50 24 . 19 5 6 . . 9 34 1 2 22 3 58 62 68 275 Projectile 652 | . 14 50 24 . 19 5 6 . . 9 34 1 2 22 3 58 62 68 275 Critical Strikes 40 | . . 3 . . 1 . 1 . . . 2 . . . . 6 3 5 19 Part Disruptions 3 | . . . . . . . . . . . . . . . . . 1 1 1 Damage Taken 10285 | . 168 949 158 . 495 63 94 . 196 129 570 12 58 482 106 776 1095 764 4170 Core 1877 | . 33 178 37 . 80 . 11 . 28 17 40 . . 97 . 68 80 50 1158 Absorbed by Shields 3252 | . . . . . 5 23 34 . 69 46 208 12 21 174 40 213 347 384 1676 Redirected to Core 839 | . . . . . . . . . . . . . . . . . . 45 794 Ignored by Resistances 1656 | . . . . . . . . . . . . . . . . 162 161 757 576 Regen/Repaired (Parts) 1758 | . . . . . 34 4 . . . 36 164 8 6 . 42 58 40 91 1275 Core Remaining (%) 73 | 100 . . . . . . . . 88 . . . . 86 . 94 . . . Volleys Fired 807 | 18 22 92 6 6 56 8 11 7 48 22 76 6 28 25 28 101 66 57 124 Largest 6 | 2 2 2 2 1 4 4 4 1 1 4 4 4 4 4 5 5 6 5 5 Hottest 310 | 100 100 110 58 . 194 128 128 98 98 128 128 128 128 128 160 233 302 230 310 Shots Fired 2179 | 36 43 168 12 6 140 26 44 7 48 55 226 24 42 97 96 314 269 174 352 Gun 1909 | 36 42 153 12 . 109 24 44 . . 45 200 24 20 96 85 278 253 162 326 Cannon 189 | . . 7 . . 19 2 . 7 48 9 . . 22 1 9 31 16 5 13 Launcher 24 | . 1 8 . . 8 . . . . . . . . . . . . . 7 Special 57 | . . . . 6 4 . . . . 1 26 . . . 2 5 . 7 6 Kinetic 1815 | . . 132 12 . 114 24 44 . . 45 200 24 20 96 85 278 253 162 326 Thermal 285 | 36 42 36 . . 19 2 . 7 48 9 . . 22 1 9 31 16 5 2 Explosive 8 | . 1 . . . . . . . . . . . . . . . . . 7 Electromagnetic 14 | . . . . . 3 . . . . . . . . . . . . . 11 Robot Hit Streak 44 | 8 10 11 10 12 10 6 8 7 . 13 43 15 14 27 10 12 32 13 44 Robot Miss Streak 5 | 2 2 3 1 1 3 3 2 . . 2 3 1 3 3 4 3 5 3 5 Penetration Max 2 | . . . . . 2 . 1 . . 2 2 1 . 1 1 1 1 . 1 Secondary Targets 26 | . . 1 . . . . 2 . . 1 2 . . 3 . 3 6 4 4 Max Gunslinging Chain 2 | . . 1 . . . . 1 . . 1 1 . . 1 . 1 1 1 2 Shots Hit Robots 1336 | 22 29 88 10 12 59 9 27 6 . 24 167 19 30 66 46 177 184 119 242 Core Hits 605 | 12 12 42 5 2 42 5 18 2 . 13 66 9 13 27 18 70 67 56 126 Critical Kills 77 | . . . . . 2 2 2 . . . 3 1 2 4 1 8 11 16 25 Critical Parts Destroyed 142 | . . 1 . . 4 . 2 . . 3 6 2 1 2 6 9 27 25 54 Critical Strikes 258 | 1 3 4 . . 6 2 4 . . 3 13 3 3 8 7 19 46 41 95 Burn 6 | 1 3 2 . . . . . . . . . . . . . . . . . Meltdown 2 | . . . . . 1 . . . . . . . 1 . . . . . . Destroy 249 | . . 2 . . 5 2 4 . . 3 13 3 2 8 7 19 46 41 94 Corrupt 1 | . . . . . . . . . . . . . . . . . . . 1 Melee Attacks 21 | . . . . 7 . . . . . . . . . . . . . 7 7 Kinetic 2 | . . . . . . . . . . . . . . . . . . 2 . Impact . | . . . . . . . . . . . . . . . . . . . . Slashing 19 | . . . . 7 . . . . . . . . . . . . . 5 7 Piercing . | . . . . . . . . . . . . . . . . . . . . Sneak Attacks 7 | . . . . 7 . . . . . . . . . . . . . . . Combat Hostiles . | . . . . . . . . . . . . . . . . . . . . Follow-up Attacks . | . . . . . . . . . . . . . . . . . . . . Damage Inflicted 40593 | 276 533 2529 182 503 2888 257 1025 222 . 845 4731 653 994 1993 1264 5276 5312 3189 7921 Guns 33404 | 276 400 1579 182 . 1699 257 1025 . . 845 4731 653 446 1972 1042 5207 5120 2558 5412 Cannons 2123 | . . 86 . . 130 . . 222 . . . . 548 21 222 69 192 138 495 Explosions 4441 | . 133 864 . . 1059 . . . . . . . . . . . . 371 2014 Melee 625 | . . . . 503 . . . . . . . . . . . . . 122 . Ramming . | . . . . . . . . . . . . . . . . . . . . Kinetic 34220 | . . 2170 182 . 2578 257 1025 . . 845 4731 653 446 1972 1042 5207 5120 2580 5412 Thermal 3384 | 276 400 359 . . 130 . . 222 . . . . 548 21 222 69 192 509 436 Explosive 1951 | . 133 . . . . . . . . . . . . . . . . . 1818 Electromagnetic 435 | . . . . . 180 . . . . . . . . . . . . . 255 Impact . | . . . . . . . . . . . . . . . . . . . . Slashing 603 | . . . . 503 . . . . . . . . . . . . . 100 . Piercing . | . . . . . . . . . . . . . . . . . . . . Highest Corruption 7 | . . . . . 1 1 1 1 1 . 2 2 2 6 . 5 1 4 7 Average Corruption 2 | . . . . . 1 1 1 1 1 . 1 2 1 3 . 4 1 2 5 Corruption Purged 2 | . . . . . . . . . . . . . 2 . . . . . . Corruption Blocked . | . . . . . . . . . . . . . . . . . . . . Effects 154 | . . . . . 4 5 4 2 7 . 6 6 6 2 . 25 3 26 58 Message Errors 41 | . . . . . 2 2 1 1 . . 2 1 3 1 . 3 . 9 16 Matter Fused 33 | . . . . . 1 . . . 1 . 2 2 1 . . 6 1 8 11 Heat Flow Errors 12 | . . . . . 1 1 . 1 1 . 1 . . . . 1 . 3 3 Energy Discharges 14 | . . . . . . . 2 . 1 . . . 1 . . 3 . 1 6 Parts Rejected 1 | . . . . . . . . . . . . . . . . . . . 1 Parts Fused 4 | . . . . . . . . . . . . 1 . . . . . 1 2 Data Loss (minor) 18 | . . . . . . . 1 . 3 . . 1 . 1 . 4 1 1 6 Data Loss (major) 14 | . . . . . . 2 . . 1 . 1 1 . . . 2 . 1 6 Misfires 5 | . . . . . . . . . . . . . . . . 2 . 2 1 Alerts 1 | . . . . . . . . . . . . . . . . . . . 1 Weapon Failures 11 | . . . . . . . . . . . . . 1 . . 4 1 . 5 Overload Shots . | . . . . . . . . . . . . . . . . . . . . Overflow Damage 646 | . . 20 . 108 11 . . 66 . . . . 29 . . 4 . 230 178 Projectiles 182 | . . . . . . . . 66 . . . . 29 . . 4 . 83 . Explosions 356 | . . 20 . . 11 . . . . . . . . . . . . 147 178 Melee 108 | . . . . 108 . . . . . . . . . . . . . . . Knockbacks . | . . . . . . . . . . . . . . . . . . . . Impact . | . . . . . . . . . . . . . . . . . . . . Kinetic . | . . . . . . . . . . . . . . . . . . . . Secondary . | . . . . . . . . . . . . . . . . . . . . Self-Inflicted Damage 223 | . 19 . . . 35 . . . . . . . . . . . . 81 88 Shots 4 | . 1 . . . 1 . . . . . . . . . . . . 1 1 Rammed . | . . . . . . . . . . . . . . . . . . . . Targets Rammed . | . . . . . . . . . . . . . . . . . . . . Kicked . | . . . . . . . . . . . . . . . . . . . . Crushed . | . . . . . . . . . . . . . . . . . . . . Highest Temperature 326 | 195 326 . 28 . 313 . . . . . 10 . . . . 250 183 2 8 Average Temperature 91 | 65 119 . 12 . 137 . . . . . 10 . . . . 101 67 2 8 Received Heat Transfer 1174 | . 84 189 30 . 124 12 27 . . . 111 . 6 6 12 70 96 43 364 Effects 3 | . 3 . . . . . . . . . . . . . . . . . . Interference 2 | . 2 . . . . . . . . . . . . . . . . . . Short Circuit 1 | . 1 . . . . . . . . . . . . . . . . . . Siege Activations . | . . . . . . . . . . . . . . . . . . . . Martial Activations . | . . . . . . . . . . . . . . . . . . . . Shielding Activations . | . . . . . . . . . . . . . . . . . . . . Robots Disrupted . | . . . . . . . . . . . . . . . . . . . . Combat Hostiles . | . . . . . . . . . . . . . . . . . . . . Robots Corrupted 2 | . . . . . . . . . . . . . . . . . . . 2 Combat Hostiles 2 | . . . . . . . . . . . . . . . . . . . 2 Parts Fried 2 | . . . . . . . . . . . . . . 1 . . . . 1 Impact Corruptions . | . . . . . . . . . . . . . . . . . . . . Robots Melted 3 | . . 1 . . 1 . . . . . . . 1 . . . . . . Combat Hostiles 2 | . . 1 . . 1 . . . . . . . . . . . . . . Parts Melted 16 | 5 2 2 . . 4 . . . . . . . 2 . . . . 1 . Heat Transferred 5996 | 888 1406 988 . . 200 . . 300 . . . . 850 50 185 74 185 450 420 Parts Sabotaged . | . . . . . . . . . . . . . . . . . . . . Parts Stolen . | . . . . . . . . . . . . . . . . . . . . Parts Stripped 18 | . . . . . . . . . . . . . . . . . . 18 . Power Chain Reactions . | . . . . . . . . . . . . . . . . . . . . Alert | -11 -10 -10 -7 -7 -5 -5 -5 -5 -4 -4 -4 -4 -4 -4 -3 -3 -2 -2 -2 ------- Run | Yrd Mat Sub Rec Scr Fac Upp Upp Zhi Pro Fac Ext Cet Arc Hub Res Tes Res Qua Sec Maximum Alert Level 4 | . . . . . 3 . . . . 1 2 2 1 3 2 2 3 2 4 Low Security (%) 44 | 100 100 . 100 . 50 . . . . 94 65 . 25 37 35 33 . 18 29 Level 1 32 | . . . . . 6 . . . . 5 27 32 74 8 52 20 35 78 39 Level 2 15 | . . . . . 3 . . . . . 7 67 . 24 11 46 63 2 6 Level 3 7 | . . . . . 39 . . . . . . . . 29 . . . . 23 Level 4 . | . . . . . . . . . . . . . . . . . . . . Level 5 . | . . . . . . . . . . . . . . . . . . . . High Security . | . . . . . . . . . . . . . . . . . . . . Max Security . | . . . . . . . . . . . . . . . . . . . . Peak Influence 1132 | 15 60 . 50 . 848 . . . . 209 553 467 359 1092 573 592 703 445 1132 Initial 573 | . . . 36 . . . . . . . 94 304 164 49 573 108 298 388 49 Average 259 | 2 8 . 12 . 366 . . . . 29 163 413 249 471 259 333 444 252 411 Influence Increases 10955 | 55 126 220 244 . 1397 110 170 5 . 389 1200 453 249 1453 209 1023 877 869 1906 Destroy 0b10 Robot/C 4860 | . 40 160 40 . 600 80 160 . . 180 540 200 80 360 60 540 440 520 860 Destroy 0b10 Robot/NC 345 | 55 20 . . . 40 . . 5 . 5 60 10 15 30 . 30 35 15 25 Destroy Leader 812 | . 14 . . . 126 . 10 . . 40 66 10 . 82 10 66 120 106 162 Allied During Kill 1376 | . . . . . 263 . . . . 51 347 217 95 403 . . . . . Successful Hack 277 | . 32 . 24 . 33 . . . . 12 32 . . . 25 30 30 45 14 Select Force Hacks 180 | . . . 180 . . . . . . . . . . . . . . . . Disable Machine 945 | . . . . . 120 . . . . 15 15 . 45 240 60 165 45 90 150 Anti-Garrison Action 200 | . . . . . . . . . . . . . . . . . . . 200 Destroy Structure 1660 | . 5 . . . 200 . . . . 86 140 16 14 338 54 192 132 93 390 Lose Combat Pursuer 300 | . 15 60 . . 15 30 . . . . . . . . . . 75 . 105 Influence Decreases 9772 | 55 126 145 319 . 559 565 408 150 . 196 849 586 517 504 1109 684 717 1471 812 Entered New Map 2428 | . . . 39 . . 311 74 145 . . 99 240 247 94 519 84 233 303 40 Time Decay 5640 | 55 126 125 280 . 467 254 334 5 . 96 510 246 270 180 440 590 434 636 592 Lost Part 120 | . . 20 . . . . . . . . 10 . . . . 10 50 . 30 Lost Ally 462 | . . . . . 92 . . . . 100 80 100 . 80 . . . 10 . Purge Threat 1122 | . . . . . . . . . . . 150 . . 150 150 . . 522 150 Squads Dispatched 60 | . 1 . . . 11 . 1 . . 3 3 1 . 3 6 7 5 9 10 Investigation 13 | . 1 . . . 3 . . . . 1 1 1 . 1 3 1 . . 1 Extermination 23 | . . . . . 3 . . . . 1 . . . 1 . 4 3 8 3 Reinforcement 22 | . . . . . 4 . . . . 1 2 . . 1 3 2 2 1 6 Assault 2 | . . . . . 1 . 1 . . . . . . . . . . . . Garrison . | . . . . . . . . . . . . . . . . . . . . Intercept . | . . . . . . . . . . . . . . . . . . . . Searches Triggered . | . . . . . . . . . . . . . . . . . . . . Construction Impeded 4 | . . . . . 1 . . . . . 1 . . 1 . 1 . . . Haulers Reinforced 4 | . . . . . 1 . . . . . . . . . 1 . . . 2 Active Scanning Responses . | . . . . . . . . . . . . . . . . . . . . Cargo Convoy Interrupts . | . . . . . . . . . . . . . . . . . . . . Stealth | -11 -10 -10 -7 -7 -5 -5 -5 -5 -4 -4 -4 -4 -4 -4 -3 -3 -2 -2 -2 --------- Run | Yrd Mat Sub Rec Scr Fac Upp Upp Zhi Pro Fac Ext Cet Arc Hub Res Tes Res Qua Sec Distress Signals 19 | . . . . . . . . . . 1 2 2 . . 5 1 3 . 5 Communications Jammed 33 | . . . . . 11 . . . . . 6 . . 2 . 7 7 . . Distress Signals 31 | . . . . . 11 . . . . . 6 . . . . 7 7 . . Times Spotted 340 | . 6 24 2 . 35 11 8 . . 8 28 8 37 19 6 33 26 31 58 Peak Tracking Total 8 | . 4 6 2 . 6 5 5 . . 4 6 5 1 5 3 4 7 4 8 Tactical Retreats 15 | . 1 3 . . 1 1 . . . . . . . . . . 2 . 7 Traps | -11 -10 -10 -7 -7 -5 -5 -5 -5 -4 -4 -4 -4 -4 -4 -3 -3 -2 -2 -2 ------- Run | Yrd Mat Sub Rec Scr Fac Upp Upp Zhi Pro Fac Ext Cet Arc Hub Res Tes Res Qua Sec Traps Triggered 20 | . 1 2 . . 1 . . . . . 9 . . 2 1 1 1 1 1 Indirectly 1 | . . . . . 1 . . . . . . . . . . . . . . Trap Hack Attempts . | . . . . . . . . . . . . . . . . . . . . Triggered . | . . . . . . . . . . . . . . . . . . . . Disarmed . | . . . . . . . . . . . . . . . . . . . . Reprogrammed . | . . . . . . . . . . . . . . . . . . . . Reused . | . . . . . . . . . . . . . . . . . . . . Traps Extracted . | . . . . . . . . . . . . . . . . . . . . Installed . | . . . . . . . . . . . . . . . . . . . . Triggered . | . . . . . . . . . . . . . . . . . . . . Machines | -11 -10 -10 -7 -7 -5 -5 -5 -5 -4 -4 -4 -4 -4 -4 -3 -3 -2 -2 -2 ---------- Run | Yrd Mat Sub Rec Scr Fac Upp Upp Zhi Pro Fac Ext Cet Arc Hub Res Tes Res Qua Sec Machines Disabled 74 | . . 4 . . 8 . . 1 1 1 3 . 3 16 4 14 3 6 10 Max in Single Turn 3 | . . 3 . . 1 . . 1 1 . 1 . 1 2 1 2 1 1 1 Garrison Access 4 | . . . . . 2 . . . . . . . . . . 1 . . 1 Network Hub 1 | . . . . . . . . . . . . . . 1 . . . . . Machines Repaired . | . . . . . . . . . . . . . . . . . . . . Machines Dismantled . | . . . . . . . . . . . . . . . . . . . . Machines Sabotaged . | . . . . . . . . . . . . . . . . . . . . Overloaded Fab Kills . | . . . . . . . . . . . . . . . . . . . . Hacking | -11 -10 -10 -7 -7 -5 -5 -5 -5 -4 -4 -4 -4 -4 -4 -3 -3 -2 -2 -2 --------- Run | Yrd Mat Sub Rec Scr Fac Upp Upp Zhi Pro Fac Ext Cet Arc Hub Res Tes Res Qua Sec Machines Accessed 88 | . 4 1 10 2 12 . . 4 1 3 12 1 . 2 9 9 5 9 4 Terminals 46 | . 3 . 4 . 5 . . . . 1 11 1 . 2 4 5 2 6 2 Fabricators 2 | . . . . . . . . . . . . . . . 2 . . . . Repair Stations 8 | . . . . . 2 . . . . 1 1 . . . . 1 . 2 1 Recycling Units 12 | . 1 . 6 . 2 . . . . 1 . . . . 1 . 1 . . Scanalyzers 7 | . . . . . 1 . . . . . . . . . 2 2 1 1 . Garrison Access 5 | . . . . . 2 . . . . . . . . . . 1 1 . 1 Total Hacks 222 | . 13 3 18 9 24 . . 17 1 4 25 2 . 5 26 25 21 20 9 Successful 113 | . 6 3 11 9 12 . . 17 1 3 15 . . 3 9 6 6 9 3 Failed 108 | . 7 . 7 . 12 . . . . 1 10 2 . 2 17 19 14 11 6 Catastrophic 21 | . . . . . . . . . . 1 . 1 . . 7 6 . 6 . Database Lockouts 1 | . . . . . . . . . . . . . . . . . 1 . . Manual 95 | . 10 . 18 . 9 . . . . 1 8 1 . 5 12 11 7 9 4 Terminals 97 | . 11 . 11 . 8 . . . . 1 19 2 . 5 11 11 4 11 3 Fabricators 6 | . . . . . . . . . . . . . . . 6 . . . . Repair Stations 24 | . . . . . 6 . . . . 2 6 . . . . 3 . 5 2 Recycling Units 17 | . 2 . 7 . 3 . . . . 1 . . . . 1 . 3 . . Scanalyzers 34 | . . . . . 2 . . . . . . . . . 8 10 10 4 . Garrison Access 14 | . . . . . 5 . . . . . . . . . . 1 4 . 4 Terminal Hacks 55 | . 4 3 1 9 1 . . 17 1 1 8 . . 2 2 . 1 4 1 Record 9 | . . 3 . . . . . 5 1 . . . . . . . . . . Part Schematic 8 | . 4 . . . . . . 4 . . . . . . . . . . . Robot Analysis 12 | . . . . 8 . . . 4 . . . . . . . . . . . Prototype ID Bank 4 | . . . . . . . . 4 . . . . . . . . . . . Open Door 6 | . . . . . . . . . . 1 5 . . . . . . . . Level Access Points 1 | . . . . . . . . . . . . . . 1 . . . . . Branch Access Points 3 | . . . . . 1 . . . . . . . . . 1 . 1 . . Unreport Threat 10 | . . . . . . . . . . . 3 . . 1 1 . . 4 1 Zone Layout 1 | . . . 1 . . . . . . . . . . . . . . . . Proto ID Catalog 1 | . . . . 1 . . . . . . . . . . . . . . . Fabricator Hacks 3 | . . . . . . . . . . . . . . . 3 . . . . Load Schematic 2 | . . . . . . . . . . . . . . . 2 . . . . Build 1 | . . . . . . . . . . . . . . . 1 . . . . Repair Station Hacks 13 | . . . . . 3 . . . . 1 5 . . . . 1 . 3 . Scan Component 9 | . . . . . 2 . . . . 1 3 . . . . 1 . 2 . Repair 4 | . . . . . 1 . . . . . 2 . . . . . . 1 . Recycling Unit Hacks 1 | . 1 . . . . . . . . . . . . . . . . . . Retrieve Components 1 | . 1 . . . . . . . . . . . . . . . . . . Scanalyzer 12 | . . . . . 2 . . . . . . . . . 1 4 4 1 . Insert Component 5 | . . . . . 1 . . . . . . . . . 1 1 1 1 . Analyze 5 | . . . . . 1 . . . . . . . . . . 3 1 . . Retrieve Study 2 | . . . . . . . . . . . . . . . . . 2 . . Garrison Access Hacks 3 | . . . . . 2 . . . . . . . . . . 1 . . . Seal Access 3 | . . . . . 2 . . . . . . . . . . 1 . . . Unauthorized Hacks 26 | . 1 . 10 . 4 . . . . 1 2 . . 1 3 . 1 1 2 Terminals 15 | . 1 . 4 . 2 . . . . . 2 . . 1 2 . 1 1 1 Assimilate 2 | . . . . . . . . . . . . . . . 1 . . 1 . Botnet 9 | . 1 . 1 . 2 . . . . . 2 . . . 1 . 1 . 1 Skim 3 | . . . 3 . . . . . . . . . . . . . . . . Sabotage 1 | . . . . . . . . . . . . . . 1 . . . . . Fabricators . | . . . . . . . . . . . . . . . . . . . . Repair Stations . | . . . . . . . . . . . . . . . . . . . . Recycling Units 10 | . . . 6 . 2 . . . . 1 . . . . 1 . . . . Tunnel 6 | . . . 6 . . . . . . . . . . . . . . . . Scrapoids 4 | . . . . . 2 . . . . 1 . . . . 1 . . . . Scanalyzers . | . . . . . . . . . . . . . . . . . . . . Garrison Access 1 | . . . . . . . . . . . . . . . . . . . 1 Jam 1 | . . . . . . . . . . . . . . . . . . . 1 Data Cores Recovered 1 | . . . . . 1 . . . . . . . . . . . . . . Used . | . . . . . . . . . . . . . . . . . . . . Hacking Detections 31 | . 3 . 3 . 5 . . . . 1 3 2 . . 4 3 2 4 1 Full Trace Events 5 | . . . . . 1 . . . . . 1 1 . . 2 . . . . Feedback Events 1 | . . . . . . . . . . . 1 . . . . . . . . Corruption 1 | . . . . . . . . . . . 1 . . . . . . . . Feedback Blocked 1 | . . . . . . . . . . . . . . . 1 . . . . Robot Schematics Acquired . | . . . . . . . . . . . . . . . . . . . . Robots Built . | . . . . . . . . . . . . . . . . . . . . Authchips . | . . . . . . . . . . . . . . . . . . . . Time . | . . . . . . . . . . . . . . . . . . . . Total Robot Build Rating . | . . . . . . . . . . . . . . . . . . . . Part Schematics Acquired 11 | . 4 . . . 1 . . 4 . . . . . . . 1 1 . . Parts Built 1 | . . . . . . . . . . . . . . . 1 . . . . Authchips . | . . . . . . . . . . . . . . . . . . . . Time 106 | . . . . . . . . . . . . . . . 106 . . . . Total Part Build Rating 6 | . . . . . . . . . . . . . . . 6 . . . . Part Studies Acquired 2 | . . . . . . . . . . . . . . . . . 2 . . Parts Repaired 4 | . . . . . 1 . . . . . 2 . . . . . . 1 . Time 273 | . . . . . 50 . . . . . 134 . . . . . . 89 . Parts Recycled . | . . . . . . . . . . . . . . . . . . . . Recycled Matter . | . . . . . . . . . . . . . . . . . . . . Retrieved Matter . | . . . . . . . . . . . . . . . . . . . . Retrieved Components 10 | . 10 . . . . . . . . . . . . . . . . . . Parts Scanalyzed 4 | . . . . . 1 . . . . . . . . . 1 1 1 . . Part Schematics Acquired 3 | . . . . . 1 . . . . . . . . . . 1 1 . . Parts Damaged 1 | . . . . . 1 . . . . . . . . . . . . . . Bothacking | -11 -10 -10 -7 -7 -5 -5 -5 -5 -4 -4 -4 -4 -4 -4 -3 -3 -2 -2 -2 ------------ Run | Yrd Mat Sub Rec Scr Fac Upp Upp Zhi Pro Fac Ext Cet Arc Hub Res Tes Res Qua Sec Used RIF Installer . | . . . . . . . . . . . . . . . . . . . . Robots Hacked 14 | . . . . . . . . . . . . . . . . 4 . 6 4 Non-combat 1 | . . . . . . . . . . . . . . . . 1 . . . Combat 2 | . . . . . . . . . . . . . . . . . . 1 1 Robot Hacks Applied 3 | . . . . . . . . . . . . . . . . 1 . 1 1 parse_system 3 | . . . . . . . . . . . . . . . . 1 . 1 1 Manual 13 | . . . . . . . . . . . . . . . . 3 . 6 4 Relay Couplers Released 2 | . . . . . 2 . . . . . . . . . . . . . . Machine Destruction 2 | . . . . . 2 . . . . . . . . . . . . . . Fabnet Peak Effective % . | . . . . . . . . . . . . . . . . . . . . Robots Rewired 17 | . . . . . . . . . . . 17 . . . . . . . . Allies Hacked 1 | . . . . . . . . . . . . . . . . 1 . . . Hacks Repelled . | . . . . . . . . . . . . . . . . . . . . Allies | -11 -10 -10 -7 -7 -5 -5 -5 -5 -4 -4 -4 -4 -4 -4 -3 -3 -2 -2 -2 -------- Run | Yrd Mat Sub Rec Scr Fac Upp Upp Zhi Pro Fac Ext Cet Arc Hub Res Tes Res Qua Sec Total Allies 56 | . . . . 5 10 . . . . 5 24 5 . . 6 . . 1 . Largest Group 18 | . . . . 5 7 . . . . 5 17 18 16 16 5 2 . 1 . Highest-Rated Group 1070 | . . . . 238 328 . . . . 238 864 1070 972 970 323 128 . 45 . Highest-Rated Ally 159 | . . . . 50 50 . . . . 50 159 152 96 96 67 64 . 45 . Total Orders 19 | . . . . . 6 . . . . . . . 3 3 2 3 . 2 . STAY 11 | . . . . . 3 . . . . . . . 2 2 1 2 . 1 . FOLLOW 8 | . . . . . 3 . . . . . . . 1 1 1 1 . 1 . Ally Attacks 459 | . . . . . 142 . . . . 51 91 61 15 95 . 4 . . . Total Damage 11806 | . . . . . 2581 . . . . 1031 2336 1498 384 3847 . 129 . . . Kills 73 | . . . . . 20 . . . . 5 15 10 2 20 . 1 . . . Allies Corrupted 7 | . . . . . . . . . . . . . . 5 1 . . 1 . Allies Melted . | . . . . . . . . . . . . . . . . . . . . Intel | -11 -10 -10 -7 -7 -5 -5 -5 -5 -4 -4 -4 -4 -4 -4 -3 -3 -2 -2 -2 ------- Run | Yrd Mat Sub Rec Scr Fac Upp Upp Zhi Pro Fac Ext Cet Arc Hub Res Tes Res Qua Sec Active Infowar (turns) 21242 | 22 1005 2424 1127 4867 1526 498 725 381 912 572 440 . 4 163 780 1605 959 2064 1168 Optics 312 | . . . . . 312 . . . . . . . . . . . . . . Sensors 10942 | . . . . . 1231 498 701 381 912 378 206 . 4 136 780 1536 947 2064 1168 Seismic 12140 | 22 1005 2424 1127 4867 746 494 424 239 529 263 . . . . . . . . . Jamming 3862 | . . . . . 1308 . . . . 527 395 . 1 163 32 1049 387 . . Robot Analysis Total 12 | . . . . 8 . . . 4 . . . . . . . . . . . Derelict Logs Recovered 9 | . . 1 . 5 . . 2 . 1 . . . . . . . . . . Drone Launches . | . . . . . . . . . . . . . . . . . . . . Drone Recoveries . | . . . . . . . . . . . . . . . . . . . . Exploration | -11 -10 -10 -7 -7 -5 -5 -5 -5 -4 -4 -4 -4 -4 -4 -3 -3 -2 -2 -2 ------------- Run | Yrd Mat Sub Rec Scr Fac Upp Upp Zhi Pro Fac Ext Cet Arc Hub Res Tes Res Qua Sec Turns Passed 29880 | 269 1005 4370 1127 6581 1526 543 757 383 912 573 1970 537 583 373 1081 1881 1066 2476 1867 Spaces Moved 15243 | 109 512 1936 477 3220 966 372 509 276 589 334 949 299 232 225 668 991 549 1213 817 Core 39 | 3 . . . 36 . . . . . . . . . . . . . . . Treads 5778 | 106 512 1695 477 2988 . . . . . . . . . . . . . . . Legs . | . . . . . . . . . . . . . . . . . . . . Wheels 9416 | . . 241 . 196 966 372 509 276 589 334 949 299 232 225 668 991 549 1213 807 Hover . | . . . . . . . . . . . . . . . . . . . . Flight . | . . . . . . . . . . . . . . . . . . . . Fastest Speed 50 | 50 160 120 165 70 100 130 130 120 130 140 140 130 140 130 130 140 140 150 160 Average Speed 164 | 156 178 187 230 194 120 133 130 124 134 140 140 139 140 132 137 146 150 170 171 Slowest Speed 1100 | 160 240 260 260 1100 130 140 130 130 140 140 140 140 140 140 140 150 160 180 180 Overloaded Moves . | . . . . . . . . . . . . . . . . . . . . Propulsion Burnouts . | . . . . . . . . . . . . . . . . . . . . Robots Hopped . | . . . . . . . . . . . . . . . . . . . . Potential Cave-ins 7 | . . . . . 2 . . . 5 . . . . . . . . . . Cave-ins Triggered 1 | . . . . . . . . . 1 . . . . . . . . . . Teleports 1 | . . . . . . . . . . . . . . . . . . . 1 Spacefolds 3 | . . . . . . . . . . . . . . . . . . . 3 Exploration Rate (%) 57 | 6 60 95 92 91 27 56 73 60 69 12 82 66 80 31 20 90 16 84 42 Regions Visited 19 Branch Regions 14 Pre-discovered Areas 11 | . . 1 6 1 . . . 3 . . . . . . . . . . . Known Exits Taken 14 | . . . . . 1 1 1 1 1 1 1 1 1 1 1 1 1 1 . Unknown Exits Taken 5 | 1 1 1 1 1 . . . . . . . . . . . . . . . Scrap Searched 18 | . . 8 . 5 . 1 1 . 3 . . . . . . . . . . Spaces Dug 93 | . . . . . 7 1 . . 18 8 . . . . 13 20 5 9 12 Terrain Destroyed 914 | . 5 71 . . 110 23 29 . 47 36 108 3 12 59 36 125 75 29 146 Melee 6 | . . . . . . . . . . . . . . . . . . 1 5 Projectile 671 | . . 2 . . 74 23 29 . 47 36 108 3 12 59 36 123 70 10 39 AOE 213 | . 5 69 . . 36 . . . . . . . . . . . . 15 88 Terrain Rammed . | . . . . . . . . . . . . . . . . . . . . Walls Destroyed . | . . . . . . . . . . . . . . . . . . . . Machines Disabled . | . . . . . . . . . . . . . . . . . . . . Actions | -11 -10 -10 -7 -7 -5 -5 -5 -5 -4 -4 -4 -4 -4 -4 -3 -3 -2 -2 -2 --------- Run | Yrd Mat Sub Rec Scr Fac Upp Upp Zhi Pro Fac Ext Cet Arc Hub Res Tes Res Qua Sec Total 19033 | 167 559 2508 496 3533 1274 411 595 308 659 415 1546 418 463 279 805 1340 708 1499 1050 Wait 2060 | 32 11 428 7 226 147 22 68 . 9 34 362 93 198 15 73 149 32 98 56 Move 15216 | 108 511 1935 476 3219 965 371 508 275 587 333 948 298 231 224 667 990 548 1212 810 Hop . | . . . . . . . . . . . . . . . . . . . . Pick Up 151 | . 7 12 3 30 29 . . 4 4 3 7 3 . 1 6 12 7 20 3 Fast Attach 64 | 7 . 1 1 8 7 1 . 7 1 1 2 4 1 . 3 3 4 7 6 Attach 52 | . . 3 . 4 9 . . 1 1 2 1 . . . 4 3 9 10 5 Detach 23 | . . . . 3 2 . . . . 1 . . 1 . 3 1 3 6 3 Swap 335 | 2 5 24 . 6 36 7 8 5 5 18 18 6 4 11 13 58 30 49 30 Drop 154 | . 3 13 3 24 20 2 . 9 3 1 8 8 . 1 4 17 6 28 4 Fire 807 | 18 22 92 6 6 56 8 11 7 48 22 76 6 28 25 28 101 66 57 124 Melee 21 | . . . . 7 . . . . . . . . . . . . . 7 7 Ram . | . . . . . . . . . . . . . . . . . . . . Kick . | . . . . . . . . . . . . . . . . . . . . Crush . | . . . . . . . . . . . . . . . . . . . . Escape Stasis 65 | . . . . . . . . . 1 . 64 . . . . . . . . Rewire 57 | . . . . . . . . . . . 57 . . . . . . . . Trap . | . . . . . . . . . . . . . . . . . . . . Miscellaneous 28 | . . . . . 3 . . . . . 3 . . 2 4 6 3 5 2 Route ------- -11/Scrapyard -10/Materials (discovered 3 exits: [*Mat] / [*Min] / *Sub) -10/Subcaves (discovered 3 exits: [*Mat x2] / *Rec) -7/Recycling (discovered 2 exits: *Fac / *Scr) -7/Scraptown (discovered 2 exits: *Fac x2) -5/Factory (discovered 4 exits: *Fac x2 / *Upp x2) -5/Upper Caves -5/Upper Caves -5/Zhirov -4/Proximity Caves -4/Factory (discovered 3 exits: *Res / *Ext x2) -4/Extension (discovered 2 exits: *Res / *Cet) -4/Cetus (discovered 2 exits: *Res / *Arc) -4/Archives (discovered 3 exits: *Res / *Hub x2) -4/Hub_04(d) (discovered 4 exits: *Res x4) -3/Research (discovered 3 exits: *Res / *Tes x2) -3/Testing -2/Research (discovered 2 exits: *Qua x2) -2/Quarantine (discovered 3 exits: *Acc / *Sec / *Frg) -2/Section 7 History --------- Turn | Location | Event 9 | -11/Scrapyard | Discovered new exit (range 15) 270 | -11/Scrapyard | Entered Materials 309 | -10/Materials | Build established: Mutant 435 | -10/Materials | Discovered new exit (range 8) 778 | -10/Materials | Discovered new exit (range 8) 1258 | -10/Materials | Discovered new exit (range 8) 1275 | -10/Materials | Entered Subcaves 2001 | -10/Subcaves | Discovered new exit (range 6) 2561 | -10/Subcaves | Build established: Scavenger-Mutant 2697 | -10/Subcaves | Shifting Twisted Machinery released Sub. Machine Gun 2703 | -10/Subcaves | Shifting Twisted Machinery released Battle Cannon 2714 | -10/Subcaves | Core integrity fell below 50% 3422 | -10/Subcaves | Core integrity fell below 20% 3916 | -10/Subcaves | Discovered new exit (range 15) 4031 | -10/Subcaves | Shifting Twisted Machinery released Sub. Monowheel 4040 | -10/Subcaves | Visited Clippyterm 4045 | -10/Subcaves | Learned Factory trap positions 4073 | -10/Subcaves | Shifting Twisted Machinery released Battle Rifle 4376 | -10/Subcaves | Shifting Twisted Machinery released Spk. Treads 4379 | -10/Subcaves | Shifting Twisted Machinery released Battle Cannon 4569 | -10/Subcaves | Discovered new exit (range 10) 4802 | -10/Subcaves | Build established: Mutant 5645 | -10/Subcaves | Entered Recycling 6137 | -7/Recycling | Scanned before Scraplab entrance 6635 | -7/Recycling | Discovered new exit (range 12) 6752 | -7/Recycling | Entered Scraplab 6767 | -7/Recycling | Discovered new exit (range 3) 6772 | -7/Recycling | Entered Scraptown 7056 | -7/Scraptown | Visited SPCMW 7086 | -7/Scraptown | Visited Fellowship of the Rings 7470 | -7/Scraptown | Visited Comm Corps 7535 | -7/Scraptown | Visited CR-KLE's Repair Center 7563 | -7/Scraptown | Visited The Evicted 7640 | -7/Scraptown | Scanned Subdweller tech in exchange for log data 7644 | -7/Scraptown | Learned Factory terminal intel 7645 | -7/Scraptown | Learned location of Extension (-4) 7647 | -7/Scraptown | Learned location of 2 exits from Upper Caves 7649 | -7/Scraptown | Learned Research security intel 7650 | -7/Scraptown | Learned Research terminal intel 7673 | -7/Scraptown | Discovered new exit (range 7) 7792 | -7/Scraptown | Visited Shadow of the Wyrm 7820 | -7/Scraptown | Visited CPS Storage 7847 | -7/Scraptown | Visited UFD Registry 7847 | -7/Scraptown | Registered with UFD as "Hellwalker" 7886 | -7/Scraptown | Visited Science Guys 7982 | -7/Scraptown | Visited Research Penetration Think Tank 8059 | -7/Scraptown | Visited Botcube Research 8097 | -7/Scraptown | Visited Analyses Database 8125 | -7/Scraptown | Visited Scrapoid Pod Storage 8155 | -7/Scraptown | Visited Infowarlord's Domain 8182 | -7/Scraptown | Visited Chapter 10 8262 | -7/Scraptown | Delivered Scrap Shield to a Scientist 8449 | -7/Scraptown | Visited A0-MCA Data Center 8459 | -7/Scraptown | Given a B+ rating by A0-MCA 8465 | -7/Scraptown | Found A0-MCA's Component Scanner 8623 | -7/Scraptown | Found Exp. Signal Interpreter 9008 | -7/Scraptown | Found Scrapoid Pod 9741 | -7/Scraptown | Scrapoid Pod released 07S05-D (x5) 9870 | -7/Scraptown | Attached CPS modules to 07S03-D. 9875 | -7/Scraptown | Attached CPS modules to 07S01-D. 9919 | -7/Scraptown | Attached CPS modules to 07S04-D. 11139 | -7/Scraptown | Discovered new exit (range 5) 11314 | -7/Scraptown | Found Lrg. Botcube 11753 | -7/Scraptown | Found Scrap Suit 11757 | -7/Scraptown | Found Scrap Suit 12895 | -7/Scraptown | Build established: Scavenger-Mutant 13242 | -7/Scraptown | Attached CPS modules to 07S02-D. 13244 | -7/Scraptown | Attached CPS modules to 07S05-D. 13353 | -7/Scraptown | Entered Factory 13353 | -5/Factory | Accompanied by 2 allies 13353 | -5/Factory | Evolved 10 slots: Utility x8, Weapon x2 13354 | -5/Factory | Loaded intel: 69 trap records 13355 | -5/Factory | Loaded intel: 26 terminal locations 13404 | -5/Factory | Found Prototype Launcher 13406 | -5/Factory | Found Prototype Launcher 13406 | -5/Factory | Identified Tesla Bomb Launcher (x2) 13620 | -5/Factory | Scrapoids reinforcements arrived? 13647 | -5/Factory | Attached CPS modules to 05F06-D. 13649 | -5/Factory | Attached CPS modules to 05F10-D. 13662 | -5/Factory | Build established: Scavenger-Scrapper 13729 | -5/Factory | Repaired Imp. Cryofiber Web 13931 | -5/Factory | Lost 4 allies 14055 | -5/Factory | Found Scrap Suit 14078 | -5/Factory | Scrapoids reinforcements arrived? 14102 | -5/Factory | Attached CPS modules to 05F12-D. 14104 | -5/Factory | Attached CPS modules to 05F15-D. 14280 | -5/Factory | P-70 Sage assimilated allied 05F14-D 14411 | -5/Factory | Lost 3 allies 14553 | -5/Factory | First assault squad dispatched 14567 | -5/Factory | Discovered new exit (range 13) 14584 | -5/Factory | Identified exit to Factory 14720 | -5/Factory | Discovered exit to Factory (range 7) 14733 | -5/Factory | Identified exit to Upper Caves 14879 | -5/Factory | Entered Upper Caves 14880 | -5/Upper Caves | Identified exit to Upper Caves 14881 | -5/Upper Caves | UFD Scientist delivered a prototype 14883 | -5/Upper Caves | Found Prototype Protection 14883 | -5/Upper Caves | Identified Enh. Scrap Shield 14916 | -5/Upper Caves | Encountered a Warlord checkpoint 15386 | -5/Upper Caves | Attracted the attention of an 0b10 outpost 15422 | -5/Upper Caves | Entered another Upper Caves area 15423 | -5/Upper Caves | Identified exit to Zhirov 15575 | -5/Upper Caves | Attracted the attention of an 0b10 outpost 15650 | -5/Upper Caves | Found DCF Scrap (12 items) 15917 | -5/Upper Caves | Learned 4 Factory zone layouts 15922 | -5/Upper Caves | Learned Factory stockpile data 16179 | -5/Upper Caves | Entered Zhirov 16182 | -5/Zhirov | Discovered new exit (range 3) 16203 | -5/Zhirov | Met Zhirov 16237 | -5/Zhirov | Zhirov requested help retrieving the SGEMP Prototype 16263 | -5/Zhirov | Found Alien Artifact 16263 | -5/Zhirov | Identified Integrated Reactor 16263 | -5/Zhirov | Installed Integrated Reactor, increased core energy generation (+10) 16340 | -5/Zhirov | Found Alien Artifact 16400 | -5/Zhirov | Identified exit to Proximity Caves 16562 | -5/Zhirov | Entered Proximity Caves 16620 | -4/Proximity Caves | Found Alien Artifact 16620 | -4/Proximity Caves | Identified Dimensional Node Initializer 16620 | -4/Proximity Caves | Initialized slip node 16724 | -4/Proximity Caves | Learned location of 1 exit from Upper Caves 17110 | -4/Proximity Caves | Crushed by falling debris 17408 | -4/Proximity Caves | Discovered exit to Factory (range 4) 17474 | -4/Proximity Caves | Entered Factory 17474 | -4/Factory | Evolved 2 slots: Utility x2 17475 | -4/Factory | Identified exit to Extension 17917 | -4/Factory | Discovered exit to Extension (range 6) 17952 | -4/Factory | Scrapoids reinforcements arrived? 17991 | -4/Factory | Attached CPS modules to 04F17-D. 18014 | -4/Factory | Found Scrap Suit 18015 | -4/Factory | Discovered new exit (range 15) 18026 | -4/Factory | Lost 5 allies 18047 | -4/Factory | Entered Extension 18305 | -4/Extension | Repaired Broken Ovr. Coil Gun? 18414 | -4/Extension | Repaired Ovr. Coil Gun 19135 | -4/Extension | Build established: Commander-Scrapper 19309 | -4/Extension | Spotted B-86 Titan 19315 | -4/Extension | Destroyed B-86 Titan 19317 | -4/Extension | Spotted B-86 Titan 19327 | -4/Extension | Allies destroyed B-86 Titan 19358 | -4/Extension | Lost 5 allies 19493 | -4/Extension | Rescued a captive Derelict 19648 | -4/Extension | Rescued A7 19661 | -4/Extension | Rescued a captive Derelict 19663 | -4/Extension | Rescued a captive Derelict 19684 | -4/Extension | Rescued a captive Derelict 19691 | -4/Extension | Rescued a captive Derelict 19691 | -4/Extension | Rescued a captive Derelict 19912 | -4/Extension | Discovered new exit (range 10) 19916 | -4/Extension | Discovered new exit (range 6) 19918 | -4/Extension | Disrupted transfer network 19970 | -4/Extension | Identified exit to Research 19986 | -4/Extension | Identified exit to Cetus 20017 | -4/Extension | Entered Cetus 20017 | -4/Cetus | Accompanied by 17 allies (A7) 20022 | -4/Cetus | Acquired a Cetus Manufacturing Module code from A7 20034 | -4/Cetus | Destroyed Cetus Guard 20043 | -4/Cetus | Spotted Cetus Guard 20047 | -4/Cetus | Allies destroyed Cetus Guard 20252 | -4/Cetus | Discovered new exit (range 16) 20304 | -4/Cetus | Started Cetus Manufacturing Module 20329 | -4/Cetus | Manufactured an Enhanced Grunt 20354 | -4/Cetus | Manufactured an Enhanced Grunt 20373 | -4/Cetus | Spotted Cetus Guard 20379 | -4/Cetus | Manufactured an Enhanced Grunt 20380 | -4/Cetus | Spotted Cetus Guard 20380 | -4/Cetus | Spotted Cetus Guard 20382 | -4/Cetus | Spotted Cetus Guard 20384 | -4/Cetus | Allies destroyed Cetus Guard 20384 | -4/Cetus | Allies destroyed Cetus Guard 20386 | -4/Cetus | Allies destroyed A7 20390 | -4/Cetus | Destroyed Cetus Guard 20392 | -4/Cetus | Destroyed Cetus Guard 20397 | -4/Cetus | Extracted ID and sensor layout for unrecognized location from A7's data core 20403 | -4/Cetus | Discovered exit to Research (range 15) 20404 | -4/Cetus | Manufactured an Enhanced Grunt 20412 | -4/Cetus | Met Revision 17 20420 | -4/Cetus | Lost 4 allies 20429 | -4/Cetus | Manufactured an Enhanced Grunt 20517 | -4/Cetus | Identified exit to Archives 20554 | -4/Cetus | Entered Archives 20554 | -4/Archives | Accompanied by 16 allies 20630 | -4/Archives | Discovered new exit (range 16) 20697 | -4/Archives | Discovered exit to Research (range 15) 20749 | -4/Archives | Discovered new exit (range 14) 21132 | -4/Archives | Identified exit to Hub_04(d) 21137 | -4/Archives | Entered Hub_04(d) 21137 | -4/Hub_04(d) | Accompanied by 16 allies 21306 | -4/Hub_04(d) | Network Hub disabled 21338 | -4/Hub_04(d) | Lost 4 allies 21421 | -4/Hub_04(d) | Spotted Lightning 21422 | -4/Hub_04(d) | Spotted Lightning 21427 | -4/Hub_04(d) | Spotted Lightning 21433 | -4/Hub_04(d) | Allies destroyed Lightning 21439 | -4/Hub_04(d) | Allies destroyed Lightning 21444 | -4/Hub_04(d) | Destroyed Lightning 21453 | -4/Hub_04(d) | Found Prototype Processor 21453 | -4/Hub_04(d) | Identified Exp. Targeting Computer 21457 | -4/Hub_04(d) | Found Prototype Device 21465 | -4/Hub_04(d) | Lost 6 allies 21510 | -4/Hub_04(d) | Entered Research 21510 | -3/Research | Evolved 2 slots: Power x1, Weapon x1 21512 | -3/Research | Loaded intel: 24 terminal locations 21582 | -3/Research | Identified exit to Testing 21609 | -3/Research | Build established: Scavenger-Scrapper 21710 | -3/Research | Revision forces began assault on 0b10 21761 | -3/Research | Met up with Revision 17++ 22197 | -3/Research | Discovered new exit (range 14) 22210 | -3/Research | Research terminal network offline 22216 | -3/Research | Identified exit to Research 22252 | -3/Research | Fabricated Ovr. Coil Gun? 22403 | -3/Research | Scrapoid reinforcements arrived 22464 | -3/Research | Attached CPS modules to 03R25-D. 22476 | -3/Research | Attached CPS modules to 03R22-D. 22510 | -3/Research | Found Scrap Suit 22520 | -3/Research | Identified Exp. EM Shield 22591 | -3/Research | Entered Testing 22591 | -3/Testing | Accompanied by 2 allies 22643 | -3/Testing | Found Prototype Energy Cannon 22650 | -3/Testing | Identified Imp. Potential Cannon 22837 | -3/Testing | Found Faulty Com. Tesla Bomb Launcher 22954 | -3/Testing | Found Ghost Barrier 23585 | -3/Testing | Discovered exit to Research (range 11) 24250 | -3/Testing | Found Hyp. Multirail 24410 | -3/Testing | Found Centrium Heavy Armor Plating 24472 | -3/Testing | Entered Research 24472 | -2/Research | Evolved 2 slots: Utility x1, Weapon x1 24635 | -2/Research | Identified exit to Quarantine 24779 | -2/Research | Central database locked down 25244 | -2/Research | Spotted B-90 Cyclops 25253 | -2/Research | Destroyed B-90 Cyclops 25458 | -2/Research | Spotted B-90 Cyclops 25503 | -2/Research | Destroyed B-90 Cyclops 25538 | -2/Research | Entered Quarantine 25563 | -2/Quarantine | Found Alien Artifact 25563 | -2/Quarantine | Identified Phase Armor 25801 | -2/Quarantine | Build established: Scavenger-Executioner 25818 | -2/Quarantine | Found Fusion Bomb Launcher 26083 | -2/Quarantine | Found Alien Slashing Weapon 26104 | -2/Quarantine | Identified Sigix Broadsword 26241 | -2/Quarantine | Found Dimensional Node Initializer 26241 | -2/Quarantine | Initialized slip node 26251 | -2/Quarantine | Found Dimensional Node Initializer 26262 | -2/Quarantine | Found Alien Artifact 26532 | -2/Quarantine | Discovered new exit (range 16) 26640 | -2/Quarantine | Found Alien Artifact 26688 | -2/Quarantine | Found Alien Artifact 26814 | -2/Quarantine | Identified Core Reset Matrix 26989 | -2/Quarantine | Identified exit to Access 27027 | -2/Quarantine | Build established: Scavenger-Skirmisher 27142 | -2/Quarantine | Repaired Exp. Heat Sink? 27497 | -2/Quarantine | Found Alien Impact Weapon 27683 | -2/Quarantine | Identified Core Stripper 27715 | -2/Quarantine | Spotted Fortress 27746 | -2/Quarantine | Destroyed Fortress 27758 | -2/Quarantine | Found Prototype Device 27758 | -2/Quarantine | Identified Exp. Force Field 27765 | -2/Quarantine | Found Prototype Device 27765 | -2/Quarantine | Identified Thermal Barrier 27786 | -2/Quarantine | Found Prototype Reactor 27786 | -2/Quarantine | Identified Vortex Chain Reactor 27790 | -2/Quarantine | Found Vortex Chain Reactor 28001 | -2/Quarantine | Discovered new exit (range 6) 28001 | -2/Quarantine | Discovered new exit (range 6) 28007 | -2/Quarantine | Identified exit to Protoforge 28013 | -2/Quarantine | Identified exit to Section 7 28014 | -2/Quarantine | Entered Section 7 28471 | -2/Section 7 | Spotted S7 Guard 28525 | -2/Section 7 | Destroyed S7 Guard 28539 | -2/Section 7 | Found Alien Artifact 28539 | -2/Section 7 | Identified Integrated Thermoelectric Network 28539 | -2/Section 7 | Installed Integrated Thermoelectric Network, gained heat-energy exchange potential 28897 | -2/Section 7 | Found Alien Artifact 28897 | -2/Section 7 | Identified Spacefold Activator 28985 | -2/Section 7 | Found Alien Artifact 28985 | -2/Section 7 | Identified Integrity Redistributor 28985 | -2/Section 7 | Used Integrity Redistributor, redistributed integrity from core (-165) 29176 | -2/Section 7 | Build established: Scavenger-Gunner 29368 | -2/Section 7 | Spotted S7 Guard 29406 | -2/Section 7 | Destroyed S7 Guard 29412 | -2/Section 7 | Core integrity fell below 50% 29473 | -2/Section 7 | Core integrity fell below 20% 29552 | -2/Section 7 | Found Alien Artifact 29552 | -2/Section 7 | Identified Integrated Mediator 29552 | -2/Section 7 | Installed Integrated Mediator, increased core attachment efficiency 29610 | -2/Section 7 | Found Alien Artifact 29610 | -2/Section 7 | Identified Core Membrane 29610 | -2/Section 7 | Installed Core Membrane, gained immunity to corruption 29730 | -2/Section 7 | Build established: Scavenger-Executioner 29814 | -2/Section 7 | Spotted Alpha 7 29817 | -2/Section 7 | Spotted Alpha 7 29836 | -2/Section 7 | Identified Transdimensional Reconstructor 29836 | -2/Section 7 | Warped through subspace 29862 | -2/Section 7 | Destroyed Alpha 7 29881 | -2/Section 7 | Destroyed self via exploding Quantum Generator Last Messages --------------- 29836_ Identified Transdimensional Reconstructor. 29836_ Warped through subspace. 29844_ Slug penetrates Wall. 29847_ System corrupted: Matter fused (-7). 29850_ Penetrated by Slug. 29861_ Slug penetrates Wall. 29861_ Slug penetrates Door. 29862_ Alpha 7 destroyed. 29865_ K-01 Serf collects debris. 29866_ Slug penetrates Wall. 29866_ Slug penetrates P-80 Master. 29868_ P-80 Master destroyed. 29868_ Slug penetrates Wall. 29869_ K-01 Serf collects debris. 29871_ Ovr. Huge Scrapsphere repairs itself (+15). 29871_ Acquired 31 matter. 29880_ K-01 Serf collects debris. 29881_ Quantum Generator explodes. Map ----- +----------------------------------------------------+ | ???????????## # ""## #????????????? | | ????????????# "" # ""## #????????????? | | ??????????? " ["R"" # ""## #????????????? | | /???????? # """ # "## #######????? ? | | ???????#"## # "" " #??? ? | | ??????? #?# ######### # #??? ? | | ?????? ?###+######### #???????# + ! = #??? ? | | #???? ??# #?# #???????# #? =####"# | | ????????# #?# #???????# ######### | | ########?# ### #??????## # " | | # #?# ## ####### # ## " | | # #?# ## % "" | | + ### """"""" ## T " | | # #?# """"""" ## ####### #= # " | | # #?# """"""" #??????########## ! # " | | # #?###########??????# w # # # | | # #??????????????????# #### # | | # "" #????###########???# #??# # | | + """ #??? * !==#???# ""T"" #??# # | | ## T" #??? !== ???# """"" = #??# # | | ?# """ #??? !=! #?## !%[ #??# # | | ?# "" #?? = # ;#####; ;;;;##### # | | ?# #?? % k # | | #########?#] = # | | #????????# == + | | #????????# ![ @! # | | #????????# ! +######+############### | | #????????# #????????????????# | | #????????# #????????????????# | | #????????# #????????????????# | | #????????####### # ; # #????????????????# | | #????????# ## #????????????????? | | ##????????# """"""" ## #????????????????? | | ??????????# """"""" ## #????????????????? | | ??????????# """"""" [## #????????????????? | | ??????????# =## #????????????????? | | ??????????# ![!#####################??????? | | ??????????# *= ## #??????? | | ##############+###"""["# #??????? | | *| !*### [ + #??????? | | ######### !!!=!#?# * # """"" #??????? | | ????????# [== ### # "" "" #??????? | | ####????# ^ # " " #??????? | | #????# ^ # = #??????? | | #????# ^ ^ # %[ #??????? | | ###### ^ "" "" ####[%##############??????? | | " T"" =! #???????????????? | | ############ " " #???????????????? | | [%!"! #???????????????? | | * !## ! #???????????????? | +----------------------------------------------------+ Best States ------------- Heat Dissipation 174 Coolant Potential 100 Energy Generation 65 Energy Capacity 700 Matter Stores 300 Matter Capacity 300 Sight Range 18 Robot Scan Range 16 Terrain Scan Density 10 Jamming Range 16 Base Temperature (-) 200 Armor Coverage 800 Resistance: TH 50 Resistance: EM 75 Weapon Shielding 90 Evasion (%) 46 Targeting Accuracy 12 Recoil Reduction 6 Defensive Hacking 20 Item Schematics ----------------- Seismic Detector | -10/Materials | Hacked Signal Interpreter | -10/Materials | Hacked Flight Unit | -10/Materials | Hacked Assault Rifle | -10/Materials | Hacked Ovr. Coil Gun | -5/Factory | Scanalyzed Assault Drone Bay | -5/Zhirov | Free Exp. Heat Sink | -5/Zhirov | Free Exp. Optical Array | -5/Zhirov | Free Imp. Arc Thrower | -5/Zhirov | Free Centrium Medium Armor Plating | -3/Testing | Scanalyzed Centrium Heavy Armor Plating | -2/Research | Scanalyzed Robot Schematics ------------------ None Fabricated ------------ Ovr. Coil Gun | x1 | -3/Research Repaired ---------- Imp. Cryofiber Web | 43% | -5/Factory Ovr. Coil Gun | 50% | -4/Extension | Broken Ovr. Coil Gun | 47% | -4/Extension Exp. Heat Sink | 32% | -2/Quarantine Studied --------- Com. HERF Cannon | -2/Research | Hacked Quantum Reactor | -2/Research | Hacked Alien Tech Used ----------------- Integrated Reactor Dimensional Node Initializer Phase Armor Sigix Broadsword Core Stripper Integrated Thermoelectric Network Spacefold Activator Integrity Redistributor Integrated Mediator Core Membrane Transdimensional Reconstructor Achievements -------------- Partsplosion Ponder That! Sunderer Wiki Contributor Challenges ------------ None Game ------ Seed MobileThermicDriver Manual? 0 Play Time 04:35:48 Cumulative 252.3 hours Start 2025.11.29 @ 15:24:08 End 2025.11.29 @ 20:06:03 Sessions 1 Manual Loads 0 Difficulty Rogue Special Mode None Game No. 185 Rogue 185 Adventurer 0 Explorer 0 Win Type - Total 11 Types 6/0/2/1/0/0/0/1/0/1 Lore% 67 Gallery% 74 Achievement% 67 Wizard Run 0 Options --------- Layout 2 ASCII 0 Keyboard 1 Movement Arrows Keybinds 0 Fullscreen 1 Font 32/Tamsyn Map View 50x44 Zoom Use 0% Tactical HUD 1 Map Filters NONE Filters NONE Steam 1 RUN: 250597a4-1a8c-44b0-b097-c938733e8ace